Workbook

Sheet 예산총칙
A2: 동화중학교회계 세입·세출 예산서
I4: 예산 총칙
E6: 본예산
C7: 예산 구분 :
J8: 예산액 | L8: 4255731000
C9: 예산확정일 | F9: 2019-02-13
B12: 제1조 2019학년도 동화중학교 교비회계 세입·세출예산총액은 세입·세출 각각 4,255,731천원으로 하며 세입 · 세출의 명세는 “세입·세출예산서”와 같다. 제2조 2019학년도 명시이월사업은 별첨 “명시이월비내역”과 같다. 제3조 동일한 정책사업 내의 단위사업간 목, 동일한 단위사업 내의 세부사업간 목에 예산의 과부족이 있는 경우에는 「사학기관재무.회계규칙」 제21조 제3항의 규정에 의하여 상호 전용할 수 있다. 단, 회계연도 경과후에는 예산을 전용할 수 없으며, 업무추진비에 충당하기 위하여 다른 비목에서 전용할 수 없다. 제4조 국가 또는 지방자치단체 등으로부터 소요전액이 교부된 경비 또는 「초.중등교육법」 제30조의2 제2항 제4호의 규정에 의한 경비(수익자부담금)와 관할청으로부터 목적이 지정되어 교부된 사업은 추가경정예산의 성립전에 이를 사용할 수 있으며, 이는 동일 회계연도내의 차기 추가경정예산에 계상하여야 한다. 다만, 목적지정 전입금, 보조금, 지원금이 교부된 이후 추가경정예산을 편성하지 못할 경우 이사회의 의결을 받은 것으로 간주처리하고 추후에 보고한다. 제5조 다음의 경비에 부족이 생겼을 때에는 비목 상호간 또는 타 비목으로부터 이용할 수 있다. 1. 교원 및 사무직원 인건비, 교원연구비, 관리 및 직책 수당, 겸직수당 2. 교육실무직원보수, 비정규직보수, 강사료 3. 세금, 공과금, 반환금
H17: 1 | M17: 발행일 : | O17: 2019-02-14

Sheet 총괄
F2: 세입 세출 예산 총괄
A4: 회계연도 : 2019 예산구분 : 본예산 기관코드 : 동화중학교
J5: (단위 : 천원)
A8: 예산구분 | C8: 전년예산액 | G8: 예산액 | J8: 비교증감
C9: 본예산 | D9: 최종예산 | J9: 본예산 | M9: 증감률 | N9: 최종예산 | Q9: 증감률
A10: 본예산 | C10: 3938087 | D10: 5280787 | G10: 4255731 | J10: 4255731 | M10: 8 | N10: 4255731 | Q10: -19
A11: 세입 | J11: 세출
A12: 장 | C12: 관 | E12: 누계예산 | I12: 구성비 | J12: 정책사업 | O12: 누계예산 | T12: 구성비
A13: 이전수입 | C13: 교육비특별회계이전수입 | E13: 3744037 | I13: 88 | J13: 인적자원 운용 | O13: 3340729 | T13: 78
A14: 이전수입 | C14: 기타이전수입 | E14: 40000 | I14: 1 | J14: 학생복지/교육격차 해소 | O14: 338161 | T14: 8
A15: 자체수입 | C15: 학부모부담수입 | E15: 447772 | I15: 11 | J15: 기본적 교육활동 | O15: 165640 | T15: 4
A16: 자체수입 | C16: 행정활동수입 | E16: 5922 | I16: 0 | J16: 선택적 교육활동 | O16: 44490 | T16: 1
A17: 기타수입 | C17: 전년도이월금 | E17: 18000 | I17: 0 | J17: 교육활동 지원 | O17: 56500 | T17: 1
J18: 학교 일반운영 | O18: 310211 | T18: 7
H21: 1/1 | P21: 발행일 : | R21: 2019-02-14

Sheet 세입
A2: 2019학년도 세입예산명세서
A4: 예산구분 : | E4: 본예산 | F4: (단위 : 천원)
A5: 과 목 | F5: 예산액 | G5: 전년도 예산액 | H5: 비교증감 | I5: 산출기초(원) | K5: 비고
A6: 장 | B6: 관 | C6: 항 | D6: 목 | E6: 원가통계비목
A7: 1.이전수입 | F7: 3784037 | G7: 3545950 | H7: 238087
B8: 1.교육비특별회계이전수입 | F8: 3744037 | G8: 3507300 | H8: 236737
C9: 1.교육비특별회계전입금수입 | F9: 3744037 | G9: 3507300 | H9: 236737
D10: 1.사립학교보조금수입 | F10: 3744037 | G10: 3507300 | H10: 236737
E11: 1.인건비재정결함보조금 | F11: 3265544 | G11: 0 | H11: 0 | I11: 인건비재정결함보조금 : 3,265,544,000원 × 1교 = | J11: 3265544000
E12: 2.운영비재정결함보조금 | F12: 478493 | G12: 0 | H12: 0 | I12: 운영비재정결함보조금 : 478,493,000원 × 1교 = | J12: 478493000
B13: 2.기타이전수입 | F13: 40000 | G13: 38650 | H13: 1350
C14: 1.사학법인이전수입 | F14: 40000 | G14: 38650 | H14: 1350
D15: 1.법인법정부담금 | F15: 40000 | G15: 38650 | H15: 1350
E16: 1.법인법정부담금 | F16: 40000 | G16: 0 | H16: 0 | I16: 건강보험부담금 : 40,000,000 | J16: 40000000
A17: 2.자체수입 | F17: 453694 | G17: 384137 | H17: 69557
B18: 1.학부모부담수입 | F18: 447772 | G18: 382487 | H18: 65285
C19: 1.수익자부담수입 | F19: 447772 | G19: 382487 | H19: 65285
D20: 1.급식비 | F20: 307778 | G20: 340037 | H20: -32259
E21: 1.급식비 | F21: 307778 | G21: 0 | H21: 0 | I21: 학생급식비 : (645명×160일×4,600원)-시청지원195,783,180 | J21: 278937000
I22: 교직원급식비 : 27명×230일×4,600원 | J22: 28566000
I23: 그 외 급식비 : 5건×55,000원 | J23: 275000
D24: 2.방과후학교활동비 | F24: 19440 | G24: 26400 | H24: -6960
E25: 1.방과후학교활동비 | F25: 19440 | G25: 0 | H25: 0 | I25: 1학기 : 30,000원×강사10명×12시간×3차 | J25: 10800000
I26: 2학기 : 30,000원×강사8명×12시간×3차 | J26: 8640000
D27: 3.현장체험학습비 | F27: 110940 | G27: 6600 | H27: 104340
E28: 1.현장체험학습비 | F28: 110940 | G28: 0 | H28: 0 | I28: 1학년 현장체험활동 : 15,000원×120명 | J28: 1800000
I29: 2학년 수학여행 : 15,000원×70명 | J29: 1050000
I30: 2학년 수학여행 : 276,000원×190명 | J30: 52440000
I31: 3학년 수학여행 : 265,000원×210명 | J31: 55650000
D32: 4.졸업앨범비 | F32: 9614 | G32: 9450 | H32: 164
E33: 1.졸업앨범비 | F33: 9614 | G33: 0 | H33: 0 | I33: 졸업앨범구입 : 44,300원×217명 | J33: 9614000
B34: 2.행정활동수입 | F34: 5922 | G34: 1650 | H34: 4272
A38: 1 | I38: 발행일 : | J38: 2019-02-14
A40: 2019학년도 세입예산명세서
A42: 예산구분 : | E42: 본예산 | F42: (단위 : 천원)
A43: 과 목 | F43: 예산액 | G43: 전년도 예산액 | H43: 비교증감 | I43: 산출기초(원) | K43: 비고
A44: 장 | B44: 관 | C44: 항 | D44: 목 | E44: 원가통계비목
C45: 1.사용료및수수료 | F45: 2090 | G45: 710 | H45: 1380
D46: 1.사용료및수수료 | F46: 2090 | G46: 710 | H46: 1380
E47: 1.사용료 | F47: 1300 | G47: 0 | H47: 0 | I47: 시설사용료 : 800,000 | J47: 800000
I48: 수용비 : 500,000 | J48: 500000
E49: 2.수수료 | F49: 790 | G49: 0 | H49: 0 | I49: 수수료 : 50,000 | J49: 50000
I50: 수험료 : 740,000 | J50: 740000
C51: 2.자산수입 | F51: 100 | G51: 100 | H51: 0
D52: 1.자산매각대 | F52: 100 | G52: 100 | H52: 0
E53: 1.자산매각대 | F53: 100 | G53: 0 | H53: 0 | I53: 자산매각대금 : 100,000 | J53: 100000
C54: 3.기타행정활동수입 | F54: 3732 | G54: 840 | H54: 2892
D55: 1.이자수입 | F55: 3632 | G55: 740 | H55: 2892
E56: 1.이자수입 | F56: 3632 | G56: 0 | H56: 0 | I56: 교비회계예금이자 : 3,492,000 | J56: 3492000
I57: 법인세환급금 : 140,000 | J57: 140000
D58: 2.기타행정활동수입 | F58: 100 | G58: 100 | H58: 0
E59: 1.기타행정활동수입 | F59: 100 | G59: 0 | H59: 0 | I59: 기타제수입 : 100,000 | J59: 100000
A60: 3.기타수입 | F60: 18000 | G60: 8000 | H60: 10000
B61: 1.전년도이월금 | F61: 18000 | G61: 8000 | H61: 10000
C62: 1.순세계잉여금 | F62: 18000 | G62: 8000 | H62: 10000
D63: 1.순세계잉여금 | F63: 18000 | G63: 8000 | H63: 10000
E64: 1.순세계잉여금 | F64: 18000 | G64: 0 | H64: 0 | I64: 순세계잉여금 : 18,000,000 | J64: 18000000
A65: 세입합계 | F65: 4255731 | G65: 3938087 | H65: 317644
A69: 2 | I69: 발행일 : | J69: 2019-02-14

Sheet 세출
A2: 2019학년도 세출예산명세서
A4: 예산구분 : | E4: 본예산 | F4: (단위 : 천원)
A5: 사업 | F5: 예산액 | G5: 전년도 예산액 | H5: 비교 증감 | I5: 산출기초(원)
A6: 정책 | B6: 단위 | C6: 세부 | D6: 세부항목 | E6: 원가통계비목
A7: 1.인적자원 운용 | F7: 3340729 | G7: 3114132 | H7: 226597
B8: 1.교직원보수 | F8: 2886718 | G8: 2684365 | H8: 202353
C9: 1.사립학교 교원보수 | F9: 2692081 | G9: 2468613 | H9: 223468
D10: 1.기본급 | F10: 1762034 | G10: 0 | H10: 0
E11: 1.봉급 | F11: 1762034 | G11: 0 | H11: 0 | I11: 교원봉급 1,762,033,900원×1교 | J11: 1762034000
D12: 2.수당 | F12: 529936 | G12: 0 | H12: 0
E13: 1.정근수당 | F13: 187344 | G13: 0 | H13: 0 | I13: 교원정근수당 143,783,200원×1교 | J13: 143784000
I14: 교원정근수당가산 43,560,000원×1교 | J14: 43560000
E15: 2.성과상여금 | F15: 120584 | G15: 0 | H15: 0 | I15: 교원성과상여금 120,583,870원×1교 | J15: 120584000
E16: 3.가족수당 | F16: 15840 | G16: 0 | H16: 0 | I16: 교원가족수당 15,840,000원×1교 | J16: 15840000
E17: 4.자녀학비보조수당 | F17: 6536 | G17: 0 | H17: 0 | I17: 교원자녀학비보조수당 1,634,000원×4회 | J17: 6536000
E18: 5.육아휴직수당 | F18: 1700 | G18: 0 | H18: 0 | I18: 육아휴직수당 1,700,000원 | J18: 1700000
E19: 6.교원보전수당 | F19: 960 | G19: 0 | H19: 0 | I19: 교원보전수당 960,000원×1교 | J19: 960000
E20: 7.교직수당 | F20: 93500 | G20: 0 | H20: 0 | I20: 교원교직수당 93,500,000×1교 | J20: 93500000
E21: 8.교직수당가산금1 | F21: 900 | G21: 0 | H21: 0 | I21: 원로교사 900,000원×1교 | J21: 900000
E22: 9.교직수당가산금2 | F22: 8400 | G22: 0 | H22: 0 | I22: 보직교사 8,400,000원×1교 | J22: 8400000
E23: 10.교직수당가산금4 | F23: 24960 | G23: 0 | H23: 0 | I23: 교원담임수당 130,000원×16명×12월 | J23: 24960000
E24: 11.시간외근무수당 | F24: 68972 | G24: 0 | H24: 0 | I24: 교원시간외근무 68,971,930원×1교 | J24: 68972000
E25: 12.교직수당가산금10 | F25: 240 | G25: 0 | H25: 0 | I25: 전문상담교사수당 20,000원×12회 | J25: 240000
D26: 3.복리후생비 | F26: 227635 | G26: 0 | H26: 0
E27: 1.정액급식비 | F27: 48620 | G27: 0 | H27: 0 | I27: 교원정액급식비 48,620,000원×1교 | J27: 48620000
E28: 2.명절휴가비 | F28: 179015 | G28: 0 | H28: 0 | I28: 교원명절휴가비 179,014,620원×1교 | J28: 179015000
D29: 4.기타수당 | F29: 14120 | G29: 0 | H29: 0
E30: 1.관리업무수당 | F30: 6320 | G30: 0 | H30: 0 | I30: 관리업무수당 6,319,390원×1교 | J30: 6320000
E31: 2.직급보조비 | F31: 7800 | G31: 0 | H31: 0 | I31: 교원직급보조비 7,800,000원×1교 | J31: 7800000
D32: 5.부담금 | F32: 158356 | G32: 0 | H32: 0
E33: 1.교직원법정부담금 | F33: 158356 | G33: 0 | H33: 0 | I33: 교원사학연금 103,839,000×1교 | J33: 103839000
I34: 교원재해보상부담금 7,715,000×1교 | J34: 7715000
A39: 1 | I39: 발행일 : | J39: 2019-02-14
A41: 2019학년도 세출예산명세서
A43: 예산구분 : | E43: 본예산 | F43: (단위 : 천원)
A44: 사업 | F44: 예산액 | G44: 전년도 예산액 | H44: 비교 증감 | I44: 산출기초(원)
A45: 정책 | B45: 단위 | C45: 세부 | D45: 세부항목 | E45: 원가통계비목
I46: 교원건강보험 46,802,000×1교 | J46: 46802000
C47: 2.사립학교 직원보수 | F47: 194637 | G47: 215752 | H47: -21115
D48: 1.기본급 | F48: 108766 | G48: 0 | H48: 0
E49: 1.봉급 | F49: 108766 | G49: 0 | H49: 0 | I49: 직원봉급 108,765,500원×1교 | J49: 108766000
D50: 2.수당 | F50: 40871 | G50: 0 | H50: 0
E51: 1.정근수당 | F51: 8554 | G51: 0 | H51: 0 | I51: 직원정근수당 6,633,130원×1교 | J51: 6634000
I52: 직원 정근가산 1,920,000원×1교 | J52: 1920000
E53: 2.성과상여금 | F53: 11928 | G53: 0 | H53: 0 | I53: 직원 성과상여금 11,927,030원×1회 | J53: 11928000
E54: 3.가족수당 | F54: 1920 | G54: 0 | H54: 0 | I54: 직원 가족수당 1,920,000원×1교 | J54: 1920000
E55: 4.시간외근무수당 | F55: 17029 | G55: 0 | H55: 0 | I55: 직원 시간외근무 17,028,200원×1교 | J55: 17029000
E56: 5.특수직무수당 | F56: 1440 | G56: 0 | H56: 0 | I56: 직원 특수직무수당 30,000원×4명×12월 | J56: 1440000
D57: 3.복리후생비 | F57: 17254 | G57: 0 | H57: 0
E58: 1.정액급식비 | F58: 6240 | G58: 0 | H58: 0 | I58: 직원 정액급식비 6,240,000원×1교 | J58: 6240000
E59: 2.명절휴가비 | F59: 11014 | G59: 0 | H59: 0 | I59: 직원 명절휴가비 11,013,600원×1교 | J59: 11014000
D60: 4.기타수당 | F60: 9735 | G60: 0 | H60: 0
E61: 1.연가보상비 | F61: 2535 | G61: 0 | H61: 0 | I61: 직원 연가보상비 2,534,400원×1회 | J61: 2535000
E62: 2.직급보조비 | F62: 7200 | G62: 0 | H62: 0 | I62: 직원 직급보조비 7,200,000원×1회 | J62: 7200000
D63: 5.부담금 | F63: 18011 | G63: 0 | H63: 0
E64: 1.교직원법정부담금 | F64: 18011 | G64: 0 | H64: 0 | I64: 직원 사학연금 13,267,000×1교 | J64: 13267000
I65: 직원 재해보상부담금 964,000×1교 | J65: 964000
I66: 직원 건강보험 3,780,000×1교 | J66: 3780000
B67: 2.기타 교직원보수 | F67: 444901 | G67: 422717 | H67: 22184
C68: 1.교직원대체인건비 | F68: 418840 | G68: 398297 | H68: 20543
D69: 1.기본급 | F69: 245203 | G69: 0 | H69: 0
E70: 1.기간제교원인건비 | F70: 245203 | G70: 0 | H70: 0 | I70: 기간제 봉급 245,202,410원×1교 | J70: 245203000
D71: 2.수당 | F71: 85016 | G71: 0 | H71: 0
E72: 1.기간제교원인건비 | F72: 85016 | G72: 0 | H72: 0 | I72: 기간제 정근수당 11,888,010원×1교 | J72: 11889000
I73: 기간제 성과상여금 23,022,870원×1교 | J73: 23023000
A78: 2 | I78: 발행일 : | J78: 2019-02-14
A80: 2019학년도 세출예산명세서
A82: 예산구분 : | E82: 본예산 | F82: (단위 : 천원)
A83: 사업 | F83: 예산액 | G83: 전년도 예산액 | H83: 비교 증감 | I83: 산출기초(원)
A84: 정책 | B84: 단위 | C84: 세부 | D84: 세부항목 | E84: 원가통계비목
I85: 기간제 가족수당 480,000원×1교 | J85: 480000
I86: 기간제 교직수당 24,983,860원×1교 | J86: 24984000
I87: 기간제 정근수당가산 1,320,000원×2명 | J87: 2640000
I88: 기간제 담임수당 130,000원×5명×12월 | J88: 7800000
I89: 기간제 시간외근무 13,839,460원×1교 | J89: 13840000
I90: 기간제 보건활동수당 30,000원×12월 | J90: 360000
D91: 3.복리후생비 | F91: 35389 | G91: 0 | H91: 0
E92: 1.기간제교원인건비 | F92: 35389 | G92: 0 | H92: 0 | I92: 기간제 정액급식비 12,991,600원×1교 | J92: 12992000
I93: 기간제 명절휴가비 22,396,080원×1교 | J93: 22397000
D94: 4.기타수당 | F94: 19014 | G94: 0 | H94: 0
E95: 1.기간제교원인건비 | F95: 19014 | G95: 0 | H95: 0 | I95: 기간제 퇴직금 19,013,290원 | J95: 19014000
D96: 5.부담금 | F96: 34218 | G96: 0 | H96: 0
E97: 1.기간제교원법정부담금 | F97: 34218 | G97: 0 | H97: 0 | I97: 기간제 건강보험 11,469,000×1교 | J97: 11469000
I98: 기간제 국민연금 13,843,000×1교 | J98: 13843000
I99: 기간제 고용보험 5,404,000×1교 | J99: 5404000
I100: 기간제 산재보험 3,502,000×1교 | J100: 3502000
C101: 2.학교운영지원수당 | F101: 26061 | G101: 24420 | H101: 1641
D102: 1.교원연구비 | F102: 26061 | G102: 0 | H102: 0
E103: 1.학교운영지원수당 | F103: 26061 | G103: 0 | H103: 0 | I103: 교원연구비 668,000×30명×1교+9,000원 | J103: 20049000
I104: 기간제 교원연구비 668,000×9명×1교 | J104: 6012000
B105: 3.교직원 복지 및 역량강화 | F105: 9110 | G105: 7050 | H105: 2060
C106: 1.교직원연수 | F106: 5210 | G106: 3350 | H106: 1860
D107: 1.기획위원연수 | F107: 2250 | G107: 0 | H107: 0
E108: 1.교육운영비 | F108: 2250 | G108: 0 | H108: 0 | I108: 기획위원연수비 15명×150,000원 | J108: 2250000
D109: 2.직무연수 | F109: 2960 | G109: 0 | H109: 0
E110: 1.교육운영비 | F110: 2960 | G110: 0 | H110: 0 | I110: 직무연수지원비및연수강사료 296,000×10건 | J110: 2960000
C111: 2.교직원복지 | F111: 3900 | G111: 3700 | H111: 200
D112: 1.교직원문화행사 | F112: 3900 | G112: 0 | H112: 0
A117: 3 | I117: 발행일 : | J117: 2019-02-14
A119: 2019학년도 세출예산명세서
A121: 예산구분 : | E121: 본예산 | F121: (단위 : 천원)
A122: 사업 | F122: 예산액 | G122: 전년도 예산액 | H122: 비교 증감 | I122: 산출기초(원)
A123: 정책 | B123: 단위 | C123: 세부 | D123: 세부항목 | E123: 원가통계비목
E124: 1.일반업무추진비 | F124: 3900 | G124: 0 | H124: 0 | I124: 교직원문화, 체육행사 39명×100,000 | J124: 3900000
A125: 2.학생복지/교육격차 해소 | F125: 338161 | G125: 368079 | H125: -29918
B126: 1.급식 관리 | F126: 307778 | G126: 340037 | H126: -32259
C127: 1.학교급식운영 | F127: 307778 | G127: 340037 | H127: -32259
D128: 1.학교급식운영 | F128: 307778 | G128: 0 | H128: 0
E129: 1.전출금 | F129: 307778 | G129: 0 | H129: 0 | I129: 조리교 전출 급식비 307,778,000 | J129: 307778000
B130: 2.보건 관리 | F130: 20769 | G130: 18592 | H130: 2177
C131: 1.학생및교직원보건안전관리 | F131: 20769 | G131: 18592 | H131: 2177
D132: 1.건강교실 운영 | F132: 1050 | G132: 0 | H132: 0
E133: 1.학생복지비 | F133: 1050 | G133: 0 | H133: 0 | I133: 건강교실 운영비 3회×350,000 | J133: 1050000
D134: 2.교직원건강검사 | F134: 500 | G134: 0 | H134: 0
E135: 1.교육운영비 | F135: 500 | G135: 0 | H135: 0 | I135: 결핵검진 12,500×40명 | J135: 500000
D136: 3.보건실운영 | F136: 5690 | G136: 0 | H136: 0
E137: 1.여비 | F137: 100 | G137: 0 | H137: 0 | I137: 보건교사 보수교육비 1명×100,000 | J137: 100000
E138: 2.학생복지비 | F138: 5590 | G138: 0 | H138: 0 | I138: 보건실기구확충 1,000,000×1개 | J138: 1000000
I139: 보건실운영비 10월×229,000 | J139: 2290000
I140: 부상학생수송비 10회×30,000 | J140: 300000
I141: 약품구입 4회×500,000 | J141: 2000000
D142: 4.학교안전공제회비 | F142: 4515 | G142: 0 | H142: 0
E143: 1.학생복지비 | F143: 4515 | G143: 0 | H143: 0 | I143: 학교안전공제회비 6,840×660 | J143: 4515000
D144: 5.학생건강검사 | F144: 9014 | G144: 0 | H144: 0
E145: 1.학생복지비 | F145: 9014 | G145: 0 | H145: 0 | I145: 건강검사(1학년 치과) 6,860원×231명 | J145: 1585000
I146: 건강검사(1학년) 30,000원×231명 | J146: 6930000
I147: 건강검사(2,3학년) 1,080원×462명 | J147: 499000
B148: 3.학생복지 | F148: 9614 | G148: 9450 | H148: 164
C149: 1.학생복지운영 | F149: 9614 | G149: 9450 | H149: 164
D150: 1.졸업앨범제작 | F150: 9614 | G150: 0 | H150: 0
E151: 1.교육운영비 | F151: 9614 | G151: 0 | H151: 0 | I151: 졸업앨범구입 44,300원×217명 | J151: 9614000
A156: 4 | I156: 발행일 : | J156: 2019-02-14
A158: 2019학년도 세출예산명세서
A160: 예산구분 : | E160: 본예산 | F160: (단위 : 천원)
A161: 사업 | F161: 예산액 | G161: 전년도 예산액 | H161: 비교 증감 | I161: 산출기초(원)
A162: 정책 | B162: 단위 | C162: 세부 | D162: 세부항목 | E162: 원가통계비목
A163: 3.기본적 교육활동 | F163: 165640 | G163: 56860 | H163: 108780
B164: 1.교과 활동 | F164: 32500 | G164: 36240 | H164: -3740
C165: 1.교과활동지원 | F165: 8500 | G165: 6940 | H165: 1560
D166: 1.교육과정운영 | F166: 2000 | G166: 0 | H166: 0
E167: 1.교육운영비 | F167: 2000 | G167: 0 | H167: 0 | I167: 커텐수리비 100,000원×15건 | J167: 1500000
I168: 교육과정운영계획서 발간비(16부) 1회×500,000원 | J168: 500000
D169: 2.교육활동홍보 | F169: 2500 | G169: 0 | H169: 0
E170: 1.교육운영비 | F170: 2500 | G170: 0 | H170: 0 | I170: 학교게시물 150,000원×10건 | J170: 1500000
I171: 학교홍보자료제작 2,000×350권 | J171: 700000
I172: 학교공개의날 운영비 300,000원×1회 | J172: 300000
D173: 3.기초기본학생지도 | F173: 1000 | G173: 0 | H173: 0
E174: 1.교육운영비 | F174: 1000 | G174: 0 | H174: 0 | I174: 기초기본학생지도 1회×1,000,000원 | J174: 1000000
D175: 4.전문적학습공동체 | F175: 3000 | G175: 0 | H175: 0
E176: 1.교육운영비 | F176: 3000 | G176: 0 | H176: 0 | I176: 전문적학습공동체 3회×1,000,000원 | J176: 3000000
C177: 2.국어교과활동 | F177: 500 | G177: 800 | H177: -300
D178: 1.국어교과활동 | F178: 300 | G178: 0 | H178: 0
E179: 1.교육운영비 | F179: 300 | G179: 0 | H179: 0 | I179: 수업및학습용품구입 100,000원×3회 | J179: 300000
D180: 2.한문교과활동 | F180: 200 | G180: 0 | H180: 0
E181: 1.교육운영비 | F181: 200 | G181: 0 | H181: 0 | I181: 수업및학습용품구입 100,000원×2회 | J181: 200000
C182: 3.사회교과활동 | F182: 200 | G182: 300 | H182: -100
D183: 1.도덕교과활동 | F183: 200 | G183: 0 | H183: 0
E184: 1.교육운영비 | F184: 200 | G184: 0 | H184: 0 | I184: 수업및학습용품구입 100,000원×2회 | J184: 200000
C185: 4.수학교과활동 | F185: 300 | G185: 300 | H185: 0
D186: 1.교과운영 | F186: 300 | G186: 0 | H186: 0
E187: 1.교육운영비 | F187: 300 | G187: 0 | H187: 0 | I187: 수업및학습용품구입 60,000×5회 | J187: 300000
C188: 5.과학교과활동 | F188: 9300 | G188: 9300 | H188: 0
D189: 1.과학교과운영 | F189: 8300 | G189: 0 | H189: 0
E190: 1.교육운영비 | F190: 4300 | G190: 0 | H190: 0 | I190: 과학의 날 행사 운영비 100,000×3회 | J190: 300000
A195: 5 | I195: 발행일 : | J195: 2019-02-14
A197: 2019학년도 세출예산명세서
A199: 예산구분 : | E199: 본예산 | F199: (단위 : 천원)
A200: 사업 | F200: 예산액 | G200: 전년도 예산액 | H200: 비교 증감 | I200: 산출기초(원)
A201: 정책 | B201: 단위 | C201: 세부 | D201: 세부항목 | E201: 원가통계비목
I202: 실습(실험)재료비 800,000×5회 | J202: 4000000
E203: 2.비품구입비 | F203: 4000 | G203: 0 | H203: 0 | I203: 과학교구확충 800,000×5회 | J203: 4000000
D204: 2.기술가정교과활동 | F204: 1000 | G204: 0 | H204: 0
E205: 1.교육운영비 | F205: 1000 | G205: 0 | H205: 0 | I205: 교구구입비 및 실습자재비구입 200,000×5회 | J205: 1000000
C206: 6.체육교과활동 | F206: 6700 | G206: 6700 | H206: 0
D207: 1.교과운영 | F207: 4900 | G207: 0 | H207: 0
E208: 1.교육운영비 | F208: 4900 | G208: 0 | H208: 0 | I208: 수업및학습용품 500,000원×5회 | J208: 2500000
I209: 교사용체육복구입 3명×200,000원 | J209: 600000
I210: 팝스, 스포츠클럽운영비 160,000원×5회 | J210: 800000
I211: 학교스포츠클럽 운영비 500,000원×2회 | J211: 1000000
D212: 2.체육대회 | F212: 1800 | G212: 0 | H212: 0
E213: 1.교육운영비 | F213: 1500 | G213: 0 | H213: 0 | I213: 행사용품구입및수선 1,500,000원×1회 | J213: 1500000
E214: 2.일반업무추진비 | F214: 300 | G214: 0 | H214: 0 | I214: 체육대회 평가회 300,000원×1회 | J214: 300000
C215: 7.예술교과활동 | F215: 5400 | G215: 2600 | H215: 2800
D216: 1.음악교과활동 | F216: 400 | G216: 0 | H216: 0
E217: 1.교육운영비 | F217: 400 | G217: 0 | H217: 0 | I217: 수업및학습용품구입 교재교구200,000원×2회 | J217: 400000
D218: 2.미술교과활동 | F218: 1000 | G218: 0 | H218: 0
E219: 1.교육운영비 | F219: 1000 | G219: 0 | H219: 0 | I219: 수업및학습용품구입 교재교구200,000원×5회 | J219: 1000000
D220: 3.음향장비구입 | F220: 4000 | G220: 0 | H220: 0
E221: 1.비품구입비 | F221: 4000 | G221: 0 | H221: 0 | I221: 음향장비구입 4,000,000×1회 | J221: 4000000
C222: 8.외국어교과활동 | F222: 500 | G222: 1800 | H222: -1300
D223: 1.영어교과 활동 | F223: 300 | G223: 0 | H223: 0
E224: 1.교육운영비 | F224: 300 | G224: 0 | H224: 0 | I224: 수업및학습용품구입 100,000원×3회 | J224: 300000
D225: 2.중국어교과 활동 | F225: 200 | G225: 0 | H225: 0
E226: 1.교육운영비 | F226: 200 | G226: 0 | H226: 0 | I226: 수업및학습용품구입 100,000원×2회 | J226: 200000
C227: 9.선택교과활동 | F227: 1100 | G227: 7500 | H227: -6400
D228: 1.교육과정 운영비 | F228: 500 | G228: 0 | H228: 0
E229: 1.교육운영비 | F229: 500 | G229: 0 | H229: 0 | I229: 2학년 학기말프로그램운영비 50,000원×10일 | J229: 500000
A234: 6 | I234: 발행일 : | J234: 2019-02-14
A236: 2019학년도 세출예산명세서
A238: 예산구분 : | E238: 본예산 | F238: (단위 : 천원)
... 260 more rows

Sheet 학급편성표및 학생수 조서
A2: 【서식 8】
A4: 학급편성표 및 학생수 조서
A5: [ 작성기준 : 예산 - 3.1. 결산 - 교육통계 ]
A8: 1. 학생현황 | H8: (단위 : 명)
A9: 학년별 | B9: 계열 | C9: 학과 | D9: 학급수 | F9: 학생수 | H9: 비고
D10: 인가 | E10: 편성 | F10: 정원 | G10: 편성
A11: 1학년 | B11: 인문 | D11: 7 | E11: 7 | F11: 222 | G11: 222
A12: 2학년 | B12: 인문 | D12: 6 | E12: 6 | F12: 199 | G12: 199
A13: 3학년 | B13: 인문 | D13: 7 | E13: 7 | F13: 220 | G13: 220
A14: 계 | D14: =SUM(D11:D13) -> 20 | E14: =SUM(E11:E13) -> 20 | F14: =SUM(F11:F13) -> 641 | G14: =SUM(G11:G13) -> 641

Sheet 업무추진비 편성 현황
B2: 업무추진비 계상 한도(일반업무추진비) 및 편성현황
B3: =IF(H6<=G6,TRUE) -> TRUE | C3: =IF(J6<=I6,TRUE) -> FALSE | J3: (단위 : 천원)
B4: 학교명 | C4: 교당(연액) | D4: 학급수 | E4: 교직원(명) | F4: 학교운영위원(명) | G4: 일반업무추진비 계상한도금액 | H4: 일반업무추진비 예산편성액 | I4: 직책급업무추진비 계상한도액 | J4: 직책급업무추진비 예산편성액
C5: 중 | D5: 20 | E5: 43 | F5: 12
B6: 동화중학교 | C6: =VLOOKUP(C5,$M$13:$N$15,2,FALSE) -> 4,000 | D6: =D5*60 -> 1,200 | E6: =E5*80 -> 3,440 | F6: =F5*100 -> 1,200 | G6: =SUM(C6:F6) -> 9,840 | H6: =I32 -> 9,840 | I6: =IF(D5<13,250,250+(D5-12)*3)*12 -> 3,288 | J6: 3,324
B7: ※ 작성요령
B8: ． 빈칸에 해당되는 값을 입력하면 자동으로 예산액이 입력되며, 음영표시된 부분은 자동함수로 값이 반영되므로 셀서식 변경 금지
J10: (단위 : 천원)
B11: 학교명 | C11: 세출예산(일반업무추진비 편성현황) | J11: 비고
C12: 정책사업 | D12: 단위사업 | E12: 세부사업명 | F12: 세부항목 | G12: 원가통계비목 | H12: 산출내역 | I12: 편성액 | M12: 학교급 | N12: 교당
B13: 동화중학교 | C13: 인적자원 운용 | D13: 교직원 복지 및 역량강화 | E13: 교직원복지 | F13: 교직원문화행사 | G13: 일반업무추진비 | H13: 교직원문화행사 | I13: 3,700 | M13: 초 | N13: 4000
B14: 동화중학교 | C14: 기본적 교육활동 | D14: 교과 활동 | E14: 체육교과활동 | F14: 체육대회 평가회 | G14: 일반업무추진비 | H14: 체육대회 평가회 | I14: 300 | M14: 중 | N14: 4000
B15: 동화중학교 | C15: 학교 일반운영 | D15: 학교기관 운영 | E15: 부서기본운영 | F15: 부서 협의회 | G15: 일반업무추진비 | H15: 교육관련 협의회비 | I15: 1,140 | M15: 고 | N15: 6000
B16: 동화중학교 | C16: 학교 일반운영 | D16: 학교기관 운영 | E16: 부서기본운영 | F16: 학년 협의회 | G16: 일반업무추진비 | H16: 교육관련 협의회비 | I16: 690
B17: 동화중학교 | C17: 학교 일반운영 | D17: 학교기관 운영 | E17: 부서기본운영 | F17: 학교운영위원회 | G17: 일반업무추진비 | H17: 학교운영위원회 협의회 | I17: 360
B18: 동화중학교 | C18: 학교 일반운영 | D18: 학교기관 운영 | E18: 부서기본운영 | F18: 교장실운영 | G18: 일반업무추진비 | H18: 교장업무추진비 | I18: 3,290
B19: 동화중학교 | C19: 학교 일반운영 | D19: 학교기관 운영 | E19: 부서기본운영 | F19: 학교운영위원회 | G19: 일반업무추진비 | H19: 학교운영위원회 협의회 | I19: 360
B32: 소계 | I32: =SUM(I13:I31) -> 9,840

Sheet 보수일람표
A1: [서식3]
A2: 교직원보수일람표(교육공무직원 포함)
U3: (단위 : 원)
A5: 연번 | B5: 현직급 (직위) | C5: 성명 | D5: 현직급 임용일 | E5: 근속 년수 | F5: 현 호봉 | G5: 봉급 | H5: 정근수당 | I5: 정근수당가산 | J5: 성과상여금 | K5: 대우공무원 | L5: 가족수당 | M5: 자녀학비보조 | N5: 육아휴직 | O5: 특수지근무 | P5: 보전수당 | Q5: 교직수당 | R5: 원로교사 | S5: 전문상담교사 및 전문상담순회교사 | T5: 연보수액계 | U5: 직급보조비 | V5: 총 계
D6: 퇴직일 | E6: 승급월 | G6: 보직교사 | H6: 특별수당 | I6: 담임교사 | J6: 실과교원 | K6: 보건활동수당 | L6: 겸직수당 | M6: 시간외근무수당 | N6: 관리업무수당 | O6: 정액급식비 | P6: 명절휴가비 | Q6: 연가보상비 | R6: 기술정보수당
A7: 교원 | G7: 1,762,033,900 | H7: 143,783,200 | I7: 43,560,000 | J7: 120,583,870 | K7: 0 | L7: 15,840,000 | M7: 6,533,550 | N7: 1,700,000 | P7: 960,000 | Q7: 93,500,000 | R7: 900,000 | S7: 240,000 | T7: 2,525,920,460 | U7: 7,800,000 | V7: 2,533,720,460
G8: 8,400,000 | I8: 24,960,000 | K8: 0 | M8: 68,971,930 | N8: 6,319,390 | O8: 48,620,000 | P8: 179,014,620 | Q8: 0 | R8: 0
A9: 연번 | B9: 현직급 (직위) | C9: 성명 | D9: 현직급 임용일 | E9: 근속 년수 | F9: 현 호봉 | G9: 봉급 | H9: 정근수당 | I9: 정근수당가산 | J9: 성과상여금 | K9: 대우공무원 | L9: 가족수당 | M9: 자녀학비보조 | N9: 육아휴직 | O9: 특수지근무 | P9: 보전수당 | Q9: 교직수당 | R9: 원로교사 | S9: 특수직무수당 | T9: 연보수액계 | U9: 직급보조비 | V9: 총 계
D10: 퇴직일 | E10: 승급월 | G10: 보직교사 | H10: 특별수당 | I10: 담임교사 | J10: 실과교원 | K10: 보건활동수당 | L10: 겸직수당 | M10: 시간외근무수당 | N10: 관리업무수당 | O10: 정액급식비 | P10: 명절휴가비 | Q10: 연가보상비 | R10: 기술정보수당
A11: 사무직원 | G11: 108,765,500 | H11: 6,633,130 | I11: 1,920,000 | J11: 11,927,030 | K11: 0 | L11: 1,920,000 | M11: 0 | N11: 0 | P11: 0 | Q11: 0 | R11: 0 | S11: 1,440,000 | T11: 169,421,860 | U11: 7,200,000 | V11: 176,621,860
G12: 0 | I12: 0 | K12: 0 | M12: 17,028,200 | N12: 0 | O12: 6,240,000 | P12: 11,013,600 | Q12: 2,534,400 | R12: 0
A13: 연번 | B13: 현직급 (직위) | C13: 성명 | D13: 현직급 임용일 | E13: 근속 년수 | F13: 현 호봉 | G13: 봉급 | H13: 정근수당 | I13: 정근수당가산 | J13: 성과상여금 | K13: 대우공무원 | L13: 가족수당 | M13: 자녀학비보조 | N13: 육아휴직 | O13: 특수지근무 | P13: 보전수당 | Q13: 교직수당 | R13: 원로교사 | S13: 퇴직금 | T13: 연보수액계 | U13: 직급보조비 | V13: 총 계
D14: 퇴직일 | E14: 승급월 | G14: 보직교사 | H14: 특별수당 | I14: 담임교사 | J14: 실과교원 | K14: 보건활동수당 | L14: 겸직수당 | M14: 시간외근무수당 | N14: 관리업무수당 | O14: 정액급식비 | P14: 명절휴가비 | Q14: 연가보상비 | R14: 기술정보수당 | S14: 전문상담교사 및 전문상담순회교사
A15: 기간제교원 | G15: 245,202,410 | H15: 11,888,010 | I15: 2,640,000 | J15: 23,022,870 | K15: 0 | L15: 480,000 | M15: 0 | N15: 0 | P15: 0 | Q15: 24,983,860 | R15: 0 | S15: 19,013,290 | T15: 384,617,580 | V15: 384,617,580
G16: 0 | I16: 7,800,000 | K16: 360,000 | M16: 13,839,460 | N16: 0 | O16: 12,991,600 | P16: 22,396,080 | Q16: 0 | R16: 0 | S16: 0
A17: 연번 | B17: 현직급 (직위) | C17: 성명 | D17: 현직급 임용일 | E17: 근속 년수 | F17: 현 호봉 | G17: 봉급 | H17: 정근수당 | I17: 정근수당가산 | J17: 성과상여금 | K17: 대우공무원 | L17: 가족수당 | M17: 자녀학비보조 | N17: 육아휴직 | O17: 특수지근무 | P17: 보전수당 | Q17: 교직수당 | R17: 원로교사 | S17: 퇴직금 | T17: 연보수액계 | U17: 직급보조비 | V17: 총 계
D18: 퇴직일 | E18: 승급월 | G18: 보직교사 | H18: 특별수당 | I18: 담임교사 | J18: 실과교원 | K18: 보건활동수당 | L18: 겸직수당 | M18: 시간외근무수당 | N18: 관리업무수당 | O18: 정액급식비 | P18: 명절휴가비 | Q18: 연가보상비 | R18: 기술정보수당 | S18: 교통보조비
A19: 교육공무직원 | G19: 59,678,280 | H19: 0 | I19: 6,840,000 | J19: 1,800,000 | K19: 0 | L19: 1,200,000 | M19: 0 | N19: 0 | O19: 0 | P19: 0 | Q19: 0 | R19: 0 | S19: 8,272,000 | T19: 92,056,480 | V19: 92,056,480
G20: 0 | H20: 0 | I20: 0 | J20: 0 | K20: 0 | L20: 0 | M20: 2,866,200 | N20: 0 | O20: 4,680,000 | P20: 3,000,000 | Q20: 1,560,000 | R20: 0 | S20: 2,160,000

Sheet 수익자부담교육비 징수액 산출근거
A1: 【서식6】
A2: 수익자 부담교육비 징수액 산출근거
I5: (단위 : 원)
A6: 교육 활동명 | B6: 횟수 | C6: 실시기간 | E6: 실시 | F6: 세 출 | H6: 세 입
C7: 부터 | D7: 까지 | E7: 기간 | F7: 소요예산액(A) | G7: 산출세부내역 | H7: 참여학생수(B) | I7: 1인당
I8: 부담액(A/B)
A9: 방과후학교 | B9: 8 | C9: 2019.03.01 | D9: 2020.02.29 | E9: 1년 | F9: 19,440,000 | G9: 30,000원*강사12명*9시간*6차 | H9: 250 | I9: =SUM(F9/H9) -> 77,760
A10: 1학년현장체험비 | B10: 1 | C10: 2019.09.23 | D10: 2019.09.23 | E10: 1일 | F10: 1,800,000 | G10: 15,000원*120명 | H10: 120 | I10: 15,000
A11: 2학년현장체험비 | B11: 1 | C11: 2019.09.23 | D11: 2019.09.23 | E11: 1일 | F11: 1,050,000 | G11: 15,000원*70명 | H11: 70 | I11: 15,000
A12: 2학년수학여행 | B12: 1 | C12: 2019.10.14 | D12: 2019.10.15 | E12: 2일 | F12: 52,440,000 | G12: 276000원*190명 | H12: 190 | I12: 276,000
A13: 3학년수학여행 | B13: 1 | C13: 2019.10.14 | D13: 2019.10.15 | E13: 2일 | F13: 55,650,000 | G13: 265000원*210명 | H13: 210 | I13: =SUM(F13/H13) -> 265,000
A14: 학교급식비(학생) | B14: 12 | C14: 2019.03.01 | D14: 2019.12.27 | E14: 10월 | F14: 278,937,000 | G14: (645명*160일*4600원)-시청지원195,783,180 | H14: 645 | I14: 432,460
A15: 학교급식비(교직원) | B15: 12 | C15: 2019.03.01 | D15: 2020.02.29 | E15: 1년 | F15: 28,566,000 | G15: 27명*230일*4600원 | H15: 27 | I15: 1,058,000
A16: 학교급식비(그외) | B16: 12 | C16: 2019.03.01 | D16: 2020.02.29 | E16: 1년 | F16: 275,000 | G16: 5건*55,000원 | H16: 5 | I16: =SUM(F16/H16) -> 55,000
A17: 앨범비 | B17: 1 | C17: 2019.11.01 | D17: 2020.02.10 | E17: 4월 | F17: 9,614,000 | G17: 44,300원*217명 | H17: 225 | I17: 42,729
A19: 계 | F19: =SUM(F9:F17) -> 447,772,000 | H19: =SUM(H9:H17) -> 1742 | I19: =SUM(I9:I17) -> 2,236,949

Sheet 기구 및 정현원(동화중)
A1: 【서식 7】
A2: 기구 및 정·현원 일람표
A3: [ 작성기준 : 예산 - 3.1. 결산 - 2.28. ]
A5: 1. 일반 현황
A7: 법인설립 인 가 년 월 일 | B7: 설립자 (한자) | D7: 이사장 인적사항 | P7: 전화번호
D8: 성명 (한자) | F8: 생년월일 | H8: 학력 | J8: 경럭 | P8: 법인 사무실 | R8: 이사장댁
A9: 1950.6.5 | B9: 유 경 화 (劉 景 華) | D9: 유 동 욱 (劉 東 旭) | F9: 1953.4.15 | H9: 중앙대학교 | J9: 유피부과의원장 | P9: (031) 563-2580 | R9: (031) 521-2595
A10: ※ 작성요령 : 관외법인도 작성하며 지역교육청에서는 법인별 제출 할 것.
A12: 2. 법인 정. 현원 현황 | S12: (단위 : 명)
A13: 구분 | B13: 사무직 | Q13: 기능직 | S13: 계
B14: 5급 | D14: 6급 | F14: 7급 | I14: 8급 | L14: 9급 | O14: 소계
A15: 정원 | B15: 0 | D15: 0 | F15: 0 | I15: 0 | L15: 0 | O15: =SUM(B15:N15) -> 0 | Q15: 0 | S15: =O15+Q15 -> 0
A16: 현원 | B16: 0 | D16: 0 | F16: 0 | I16: 0 | L16: 0 | O16: =SUM(B16:N16) -> 0 | Q16: 0 | S16: =O16+Q16 -> 0
A17: 증감 | B17: =B15-B16 -> 0 | D17: =D15-D16 -> 0 | F17: 0 | I17: 0 | L17: 0 | O17: =O15-O16 -> 0 | Q17: =Q15-Q16 -> 0 | S17: =S15-S16 -> 0
A18: ※ 작성요령 : 관내법인만 작성.
A20: 3. 학교 교직원 정.현원 현황 | S20: (단위 : 명)
A21: 구분 | B21: 정규교원 | G21: 기간제교원 | J21: 일반직 | P21: 기능직 | S21: 합계
B22: 교장 | C22: 교감 | D22: 보직 교사 | E22: 교사 | F22: 소계 | G22: 결원 보충 | H22: 기타 | I22: 소계 | J22: 5급 | K22: 6급 | L22: 7급 | M22: 8급 | N22: 9급 | O22: 소계 | P22: 8등급 | Q22: 9등급 | R22: 소계
A23: 정원 | B23: 1 | C23: 1 | D23: 10 | E23: 25 | F23: =SUM(B23:E23) -> 37 | G23: 0 | H23: 0 | I23: =SUM(G23:H23) -> 0 | J23: 0 | K23: 1 | L23: 0 | M23: 1 | N23: 0 | O23: =SUM(J23:N23) -> 2 | P23: 0 | Q23: 2 | R23: =SUM(P23:Q23) -> 2 | S23: =F23+O23+R23+I23 -> 41
A24: 현원 | B24: 1 | C24: 0 | D24: 10 | E24: 19 | F24: =SUM(B24:E24) -> 30 | G24: 6 | H24: 1 | I24: =SUM(G24:H24) -> 7 | J24: 0 | K24: 1 | L24: 0 | M24: 1 | N24: 0 | O24: =SUM(J24:N24) -> 2 | P24: 0 | Q24: 2 | R24: =SUM(P24:Q24) -> 2 | S24: =F24+O24+R24+I24 -> 41
A25: 증감 | B25: =B23-B24 -> 0 | C25: =C23-C24 -> 1 | D25: 0 | E25: 6 | F25: 7 | G25: -6 | H25: -1 | I25: -7 | J25: 0 | K25: 0 | L25: 0 | M25: 0 | N25: 0 | O25: 0 | P25: 0 | Q25: 0 | R25: 0 | S25: 0
A26: ※ 정원은 관할청에서 인정한 인원을 기재하고 현원은 현재 근무중인자(휴직자 포함, 기간제교사와 시간강사는 제외)를 작성한다.
A28: 4. 교육실무직원 현황 | S28: (단위 : 명)
A29: 구분 | B29: 비정규직
B30: 행정실무사 | D30: 영양사 | F30: 사서 | N30: ] | S30: 계
A31: 정원 | B31: 3 | D31: 0 | F31: 0 | H31: 0 | J31: 0 | K31: 0 | L31: 0 | N31: 0 | P31: 0 | R31: 0 | S31: =SUM(B31:R31) -> 3
A32: 현원 | B32: 3 | D32: 0 | F32: 0 | H32: 0 | J32: 0 | K32: 0 | L32: 0 | N32: 0 | P32: 0 | R32: 0 | S32: =SUM(B32:R32) -> 3
A33: 증감 | B33: 0 | D33: 0 | F33: 0 | H33: 0 | J33: =J31-J32 -> 0 | K33: 0 | L33: =M31-M32 -> 0 | N33: 0 | P33: 0 | R33: =R31-R32 -> 0 | S33: =S31-S32 -> 0
A34: ※ 직종에 따라 변경 작성
